fUSD/lending_fUSD_20250906
["ID","MTS","AMOUNT","RATE_DAILY","PERIOD"]
[383869553,1757149844311,-500.0,0.00044298,30]
[383869555,1757149844320,-151.0,0.00044384,10]
[383869557,1757149844329,-746.0,0.00044384,2]
[383869559,1757149844338,-846.18,0.00044387,30]
[383869561,1757149844348,-476.45,0.00044387,30]
[383869563,1757149844357,-470.72,0.00044387,30]
[383869565,1757149844366,-802.0,0.00044387,30]
[383869567,1757149844376,-802.0,0.00044387,30]
[383869569,1757149844385,-470.72,0.00044387,30]
[383869571,1757149844394,-470.72,0.00044387,30]
[383869573,1757149844404,-802.0,0.00044387,30]
[383869575,1757149844413,-802.0,0.00044387,30]
[383869577,1757149844423,-802.0,0.00044387,30]
[383869579,1757149844433,-802.0,0.00044387,30]
[383869581,1757149844442,-802.0,0.00044387,30]
[383869583,1757149844451,-802.0,0.00044387,30]
[383869585,1757149844462,-802.0,0.00044387,30]
[383869586,1757149844471,-802.0,0.00044387,30]
[383869588,1757149844480,-802.0,0.00044387,30]
[383869590,1757149844489,-802.0,0.00044387,30]
[383869592,1757149844501,-430.82057607,0.000444,33]
[383869594,1757149844511,-418.0,0.00044466,120]
[383869596,1757149844520,-169.30438,0.00044469,2]
[383869598,1757149844529,-556.0,0.00044485,2]
[383869600,1757149844538,-494.0,0.00044485,2]
[383869602,1757149844548,-779.0,0.00044499,2]
[383869605,1757149844557,-238.91762306,0.00044523,28]
[383869607,1757149844567,-151.0,0.00044525,120]
[383869609,1757149844576,-48548.4247257,0.00044528,2]
[383869611,1757149844585,-8617.4840517,0.00044528,2]
[383869613,1757149844594,-152.0,0.00044592,14]
[383869615,1757149844603,-152.0,0.00044592,14]
[383869617,1757149844612,-155.0,0.00044592,14]
[383869619,1757149844621,-152.0,0.00044592,14]
[383869621,1757149844630,-1224.0,0.00044592,14]
[383869623,1757149844640,-157.7458438,0.00044592,14]
[383869625,1757149844649,-1224.0,0.00044592,14]
[383869627,1757149844658,-152.0,0.00044592,14]
[383869629,1757149844667,-1224.0,0.00044592,14]
[383869630,1757149844676,-152.0,0.00044592,14]
[383869632,1757149844685,-1224.0,0.00044592,14]
[383869634,1757149844695,-152.0,0.00044592,14]
[383869636,1757149844704,-152.0,0.00044592,14]
[383869638,1757149844713,-152.0,0.00044592,14]
[383869640,1757149844722,-154.0,0.00044592,14]
[383869642,1757149844731,-154.0,0.00044592,14]
[383869644,1757149844740,-154.0,0.00044592,14]
[383869646,1757149844749,-237.02311149,0.00044592,14]
[383869648,1757149844759,-154.0,0.00044592,14]
[383869650,1757149844768,-746.0,0.00044658,2]
[383869652,1757149844777,-1911.63,0.00044661,30]
[383869654,1757149844787,-151.07,0.00044661,30]
[383869656,1757149844796,-174.35,0.00044661,30]
[383869658,1757149844805,-166.62,0.00044661,30]
[383869660,1757149844814,-150.0,0.00044661,30]
[383869662,1757149844824,-226.21,0.00044661,30]
[383869664,1757149844832,-409.88,0.00044661,30]
[383869666,1757149844841,-155.77,0.00044661,30]
[383869668,1757149844851,-161.95,0.00044661,30]
[383869670,1757149844860,-541.44,0.00044661,30]
[383869672,1757149844869,-258.93,0.00044661,30]
[383869674,1757149844877,-174.35,0.00044661,30]
[383869676,1757149844887,-166.62,0.00044661,30]
[383869678,1757149844897,-150.0,0.00044661,30]
[383869680,1757149844907,-150.0,0.00044661,30]
[383869682,1757149844916,-541.44,0.00044661,30]
[383869684,1757149844925,-409.88,0.00044661,30]
[383869686,1757149844934,-150.0,0.00044661,30]
[383869688,1757149844943,-150.0,0.00044661,30]
[383869690,1757149844953,-174.35,0.00044661,30]
[383869692,1757149844963,-150.0,0.00044661,30]
[383869694,1757149844973,-150.0,0.00044661,30]
[383869696,1757149844982,-409.88,0.00044661,30]
[383869698,1757149844992,-541.44,0.00044661,30]
[383869700,1757149845001,-166.62,0.00044661,30]
[383869702,1757149845011,-150.0,0.00044661,30]
[383869704,1757149845022,-150.0,0.00044661,30]
[383869706,1757149845031,-541.44,0.00044661,30]
[383869708,1757149845040,-150.0,0.00044661,30]
[383869710,1757149845050,-409.88,0.00044661,30]
[383869712,1757149845059,-174.35,0.00044661,30]
[383869714,1757149845068,-150.0,0.00044661,30]
[383869716,1757149845077,-150.0,0.00044661,30]
[383869718,1757149845087,-166.62,0.00044661,30]
[383869720,1757149845096,-541.44,0.00044661,30]
[383869722,1757149845105,-166.62,0.00044661,30]
[383869724,1757149845114,-174.35,0.00044661,30]
[383869726,1757149845127,-150.0,0.00044661,30]
[383869728,1757149845136,-409.88,0.00044661,30]
[383869730,1757149845145,-150.0,0.00044661,30]
[383869732,1757149845154,-150.0,0.00044661,30]
[383869734,1757149845163,-174.35,0.00044661,30]
[383869736,1757149845172,-166.62,0.00044661,30]
[383869738,1757149845181,-409.88,0.00044661,30]
[383869739,1757149845190,-150.0,0.00044661,30]
[383869741,1757149845199,-150.0,0.00044661,30]
[383869743,1757149845208,-541.44,0.00044661,30]
[383869745,1757149845218,-150.0,0.00044661,30]
[383869747,1757149845227,-541.44,0.00044661,30]
[383869749,1757149845237,-150.0,0.00044661,30]
[383869751,1757149845246,-166.62,0.00044661,30]
[383869753,1757149845255,-174.35,0.00044661,30]
[383869755,1757149845265,-409.88,0.00044661,30]
[383869757,1757149845274,-174.35,0.00044661,30]
[383869759,1757149845283,-164.67,0.00044661,30]
[383869761,1757149845292,-541.44,0.00044661,30]
[383869763,1757149845301,-150.0,0.00044661,30]
[383869765,1757149845310,-401.55,0.00044661,30]
[383869767,1757149845321,-156.13,0.00044661,30]
[383869769,1757149845330,-174.35,0.00044661,30]
[383869771,1757149845339,-541.44,0.00044661,30]
[383869773,1757149845348,-174.35,0.00044661,30]
[383869775,1757149845357,-1074.41,0.00044661,30]
[383869777,1757149845366,-429.8,0.00044661,30]
[383869779,1757149845375,-541.44,0.00044661,30]
[383869781,1757149845384,-541.44,0.00044661,30]
[383869783,1757149845394,-541.44,0.00044661,30]
[383869785,1757149845404,-541.44,0.00044661,30]
[383869787,1757149845413,-443.54,0.00044661,30]
[383869789,1757149845423,-350.0,0.00044668,10]
[383869791,1757149845432,-461.37,0.000447,30]
[383869793,1757149845442,-557.16424665,0.00044759,2]
[383869795,1757149845452,-517.0,0.00044759,2]
[383869797,1757149845462,-780.0,0.00044824,7]
[383869799,1757149845472,-500.0,0.00044881,30]
[383869801,1757149845481,-152.0,0.00044932,10]
[383869803,1757149845492,-746.0,0.00044932,2]
[383869805,1757149845501,-87562.00781779,0.00045,120]
[383869807,1757149845511,-3070.52464131,0.00045019,15]
[383869809,1757149845524,-153.85,0.00045094,120]
[383869811,1757149845533,-500.0,0.00045157,30]
[383869813,1757149845543,-500.0,0.00045182,30]
[383869815,1757149845553,-331.6672679,0.00045206,2]
[383869817,1757149845562,-277.35679052,0.00045206,2]
[383869819,1757149845572,-746.0,0.00045206,2]
[383869821,1757149845582,-150.48,0.00045209,30]
[383869824,1757149845591,-150.0,0.00045209,30]
[383869825,1757149845601,-150.0,0.00045209,30]
[383869827,1757149845611,-470.45,0.00045216,30]
[383869830,1757149845620,-450.0,0.00045216,10]
[383869832,1757149845630,-2461.25,0.000453,30]
[383869834,1757149845640,-150.0,0.00045353,30]
[383869836,1757149845649,-2404.94,0.00045353,30]
[383869838,1757149845659,-839.73,0.00045353,30]
[383869840,1757149845668,-150.0,0.00045353,30]
[383869842,1757149845678,-348.27,0.00045353,30]
[383869844,1757149845687,-1094.41,0.00045353,30]
[383869846,1757149845697,-150.0,0.00045353,30]
[383869848,1757149845707,-429.15489254,0.00045391,46]
[383869850,1757149845717,-779.0,0.00045397,120]
[383869852,1757149845726,-2024.28,0.000454,14]
[383869854,1757149845735,-500.0,0.00045425,30]
[383869856,1757149845744,-780.0,0.00045467,2]
[383869858,1757149845753,-153.0,0.00045479,10]
[383869860,1757149845763,-746.0,0.0004548,2]
[383869862,1757149845772,-779.0,0.00045615,2]
[383869863,1757149845781,-680.57635069,0.00045706,21]
[383869865,1757149845791,-746.0,0.00045754,2]
[383869868,1757149845801,-781.0,0.00045757,120]
[383869870,1757149845811,-652.30562018,0.00045764,10]
[383869872,1757149845821,-4000.0,0.00045791,8]
[383869874,1757149845831,-10832.617784,0.00045878,2]
[383869876,1757149845840,-1922.8205965,0.00045878,2]
[383869878,1757149845849,-730.59603832,0.00045889,120]
[383869880,1757149845859,-7515.51,0.00046,14]
[383869882,1757149845868,-150.04201661,0.00046027,10]
[383869884,1757149845877,-746.0,0.00046028,2]
[383869886,1757149845887,-154.0,0.000461,120]
[383869888,1757149845896,-746.0,0.00046301,2]
[383869890,1757149845907,-159.6,0.00046368,120]
[383869892,1757149845916,-629.19418472,0.00046402,14]
[383869894,1757149845926,-2414.69886968,0.00046428,120]
[383869896,1757149845935,-287.61899177,0.00046575,2]
[383869898,1757149845945,-746.0,0.00046575,2]
[383869900,1757149845954,-391.0,0.000466,2]
[383869902,1757149845965,-1200.0,0.000466,2]
[383869904,1757149845974,-563.08911572,0.000466,2]
[383869906,1757149845984,-3070.52464131,0.00046679,15]
[383869908,1757149845993,-4000.0,0.00046682,120]
[383869910,1757149846003,-2024.28,0.000467,14]
[383869912,1757149846012,-461.37,0.000468,30]
[383869914,1757149846022,-746.0,0.00046849,2]
[383869916,1757149846031,-2461.25,0.00047,30]
[383869918,1757149846041,-746.0,0.00047123,2]
[383869920,1757149846050,-152.0,0.00047133,14]
[383869922,1757149846059,-152.0,0.00047133,14]
[383869924,1757149846068,-82665.8744213,0.00047233,2]
[383869926,1757149846078,-552.51,0.00047256,120]
[383869928,1757149846087,-200.0,0.0004734,2]
[383869930,1757149846097,-764.83606105,0.00047397,2]
[383869932,1757149846106,-1199.8372505,0.00047575,2]
[383869934,1757149846115,-238.91762306,0.00047598,28]
[383869936,1757149846128,-1865.05,0.0004779,2]
[383869938,1757149846138,-500.0,0.00047802,30]
[383869940,1757149846147,-34547.0,0.000479,120]
[383869942,1757149846157,-3200.0,0.000479,17]
[383869944,1757149846167,-500.0,0.0004792,30]
[383869946,1757149846178,-298.26089446,0.00047944,2]
[383869948,1757149846187,-7614.91781581,0.00047997,120]
[383869950,1757149846197,-151.0,0.00047997,120]
[383869952,1757149846206,-7515.51,0.00048,14]
[383869953,1757149846216,-1000000.0,0.00048,120]
[383869956,1757149846226,-277000.0,0.00048,120]
[383869957,1757149846235,-7515.51,0.00048,14]
[383869959,1757149846245,-2461.25,0.00048,30]
[383869962,1757149846254,-151.0,0.00048,120]
[383869964,1757149846264,-151.0,0.00048,120]
[383869966,1757149846273,-293.715389,0.00048,120]
[383869968,1757149846283,-151.0,0.00048,120]
[383869969,1757149846293,-151.0,0.00048,120]
[383869971,1757149846302,-151.0,0.00048,120]
[383869973,1757149846314,-151.817612,0.00048,120]
[383869975,1757149846324,-151.0,0.00048,120]
[383869977,1757149846334,-151.0,0.00048,120]
[383869978,1757149846344,-151.0,0.00048,120]
[383869979,1757149846353,-151.0,0.00048,120]
[383869980,1757149846364,-151.0,0.00048,120]
[383869982,1757149846374,-213.849627,0.00048,120]
[383869984,1757149846384,-151.0,0.00048,120]
[383869986,1757149846395,-151.0,0.00048,120]
[383869988,1757149846405,-151.0,0.00048,120]
[383869990,1757149846416,-151.0,0.00048,120]
[383869992,1757149846426,-151.0,0.00048,120]
[383869994,1757149846436,-151.0,0.00048,120]
[383869996,1757149846446,-151.0,0.00048,120]
[383869998,1757149846457,-151.0,0.00048,120]
[383870000,1757149846467,-151.0,0.00048,120]
[383870003,1757149846477,-257.0,0.00048,5]
[383870005,1757149846487,-151.0,0.00048,120]
[383870007,1757149846497,-151.0,0.00048,120]
[383870009,1757149846507,-151.0,0.00048,120]
[383870011,1757149846517,-151.0,0.00048,120]
[383870014,1757149846527,-151.0,0.00048,120]
[383870016,1757149846538,-151.0,0.00048,120]
[383870018,1757149846549,-151.0,0.00048,120]
[383870020,1757149846560,-151.0,0.00048,120]
[383870023,1757149846571,-170.97795,0.00048,120]
[383870025,1757149846581,-151.0,0.00048,120]
[383870027,1757149846593,-170.97795,0.00048,120]
[383870029,1757149846603,-151.0,0.00048,120]
[383870031,1757149846614,-170.97795,0.00048,120]
[383870033,1757149846624,-170.97795,0.00048,120]
[383870035,1757149846634,-151.0,0.00048,120]
[383870037,1757149846644,-151.0,0.00048,120]
[383870039,1757149846655,-151.0,0.00048,120]
[383870041,1757149846665,-151.0,0.00048,120]
[383870043,1757149846675,-151.0,0.00048,120]
[383870045,1757149846685,-151.0,0.00048,120]
[383870047,1757149846696,-151.0,0.00048,120]
[383870050,1757149846706,-151.0,0.00048,120]
[383870052,1757149846715,-251.249865,0.00048,120]
[383870054,1757149846726,-245.349896,0.00048,120]
[383870056,1757149846737,-151.0,0.00048,120]
[383870058,1757149846747,-239.524423,0.00048,120]
[383870060,1757149846757,-192.26024,0.00048,120]
[383870062,1757149846768,-192.26024,0.00048,120]
[383870064,1757149846777,-192.26024,0.00048,120]
[383870066,1757149846787,-192.26024,0.00048,120]
[383870068,1757149846797,-151.0,0.00048,120]
[383870071,1757149846808,-160.237204,0.00048,120]
[383870073,1757149846818,-151.0,0.00048,120]
[383870075,1757149846828,-184.492926,0.00048,120]
[383870077,1757149846838,-159.492881,0.00048,120]
[383870079,1757149846848,-151.0,0.00048,120]
[383870081,1757149846858,-151.0,0.00048,120]
[383870083,1757149846868,-151.0,0.00048,120]
[383870085,1757149846879,-151.0,0.00048,120]
[383870087,1757149846890,-151.0,0.00048,120]
[383870089,1757149846900,-151.0,0.00048,120]
[383870092,1757149846912,-151.0,0.00048,120]
[383870094,1757149846923,-151.0,0.00048,2]
[383870096,1757149846934,-151.0,0.00048,120]
[383870098,1757149846944,-151.0,0.00048,2]
[383870100,1757149846955,-151.0,0.00048,120]
[383870102,1757149846966,-151.0,0.00048,120]
[383870104,1757149846976,-151.0,0.00048,120]
[383870106,1757149846986,-151.0,0.00048,120]
[383870108,1757149846996,-151.0,0.00048,120]
[383870110,1757149847006,-151.0,0.00048,120]
[383870112,1757149847016,-233.513658,0.00048,120]
[383870114,1757149847025,-151.0,0.00048,60]
[383870116,1757149847035,-151.0,0.00048,120]
[383870118,1757149847044,-151.0,0.00048,120]
[383870120,1757149847054,-151.0,0.00048,120]
[383870122,1757149847063,-151.0,0.00048,120]
[383870124,1757149847073,-155.947208,0.00048,120]
[383870126,1757149847083,-152.831687,0.00048,120]
[383870128,1757149847093,-151.0,0.00048,120]
[383870130,1757149847103,-151.0,0.00048,120]
[383870132,1757149847113,-151.0,0.00048,120]
[383870135,1757149847126,-151.0,0.00048,120]
[383870136,1757149847136,-151.0,0.00048,120]
[383870139,1757149847147,-151.0,0.00048,120]
[383870141,1757149847158,-700.503592,0.00048,120]
[383870143,1757149847168,-151.0,0.00048,120]
[383870145,1757149847178,-151.0,0.00048,120]
[383870147,1757149847188,-700.503592,0.00048,120]
[383870149,1757149847198,-151.0,0.00048,120]
[383870151,1757149847208,-151.0,0.00048,120]
[383870153,1757149847218,-700.503592,0.00048,120]
[383870155,1757149847228,-151.0,0.00048,120]
[383870157,1757149847238,-151.0,0.00048,120]
[383870159,1757149847248,-700.503592,0.00048,120]
[383870161,1757149847258,-151.0,0.00048,120]
[383870164,1757149847268,-151.0,0.00048,120]
[383870166,1757149847279,-156.618441,0.00048,120]
[383870168,1757149847288,-151.0,0.00048,120]
[383870170,1757149847298,-186.71383,0.00048,120]
[383870172,1757149847312,-500.0,0.0004818,30]
[383870174,1757149847322,-153.0,0.000482,120]
[383870177,1757149847332,-547.97,0.00048207,120]
[383870179,1757149847343,-4000.0,0.00048213,120]
[383870181,1757149847353,-5800.0,0.00048259,14]
[383870183,1757149847363,-2024.28,0.000483,14]
[383870185,1757149847373,-429.15489254,0.00048318,52]
[383870187,1757149847383,-3070.52464131,0.00048339,15]
[383870189,1757149847393,-151.0,0.00048394,2]
[383870191,1757149847404,-151.0,0.00048394,2]
[383870193,1757149847415,-151.0,0.00048394,2]
[383870196,1757149847425,-500.0,0.00048489,30]
[383870198,1757149847436,-153.53107479,0.000488,120]
[383870200,1757149847446,-15745.09502048,0.000488,120]
[383870202,1757149847456,-19952.09034975,0.000488,120]
[383870204,1757149847466,-461.37,0.000488,30]
[383870206,1757149847476,-158.35,0.00048803,2]
[383870208,1757149847488,-7515.51,0.00049,14]
[383870210,1757149847499,-10000.0,0.00049,120]
[383870212,1757149847509,-18445.2497984,0.00049188,2]
[383870214,1757149847519,-309.29654756,0.00049313,2]
[383870217,1757149847530,-680.57635069,0.00049323,35]
[383870219,1757149847540,-500.0,0.00049473,30]
[383870221,1757149847550,-2027.20620494,0.00049666,21]
[383870223,1757149847560,-500.0,0.00049709,30]
[383870225,1757149847569,-5800.0,0.00049718,21]
[383870227,1757149847579,-5800.0,0.00049727,21]
[383870229,1757149847590,-3814.40823801,0.00049766,21]
[383870231,1757149847600,-1000.0,0.000498,120]
[383870233,1757149847610,-4000.0,0.000499,18]
[383870236,1757149847620,-2013.17577702,0.000499,2]
[383870237,1757149847630,-168.27449994,0.000499,2]
[383870240,1757149847641,-220.41448552,0.000499,2]
[383870242,1757149847651,-500.0,0.00049917,30]
[383870244,1757149847662,-8945.2091164,0.00049966,2]
[383870246,1757149847671,-226.59999693,0.00049997,120]
[383870248,1757149847681,-3070.52464131,0.00049999,15]
[383870250,1757149847692,-150.0,0.00049999,120]
[383870252,1757149847702,-50000.0,0.0005,65]
[383870254,1757149847712,-17706.43697229,0.0005,120]
[383870256,1757149847723,-6185.36434215,0.0005,120]
[383870258,1757149847733,-504.32331862,0.0005,120]
[383870260,1757149847744,-10000.0,0.0005,120]
[383870263,1757149847754,-1000000.0,0.0005,120]
[383870265,1757149847765,-3010.21128815,0.0005,10]
[383870267,1757149847777,-153.059391,0.0005,14]
[383870269,1757149847787,-154.313951,0.0005,120]
[383870271,1757149847797,-151.0,0.0005,120]
[383870273,1757149847807,-151.0,0.0005,120]
[383870275,1757149847817,-151.0,0.0005,120]
[383870277,1757149847827,-333.219907,0.0005,120]
[383870279,1757149847838,-333.219907,0.0005,120]
[383870282,1757149847848,-333.219907,0.0005,120]
[383870284,1757149847859,-238.236622,0.0005,120]
[383870286,1757149847869,-333.219907,0.0005,120]
[383870288,1757149847879,-238.236622,0.0005,120]
[383870290,1757149847889,-238.236622,0.0005,120]
[383870292,1757149847900,-238.236622,0.0005,120]
[383870294,1757149847911,-151.0,0.0005,120]
[383870296,1757149847921,-151.0,0.0005,120]
[383870298,1757149847932,-154.401558,0.0005,120]
[383870300,1757149847943,-151.0,0.0005,120]
[383870302,1757149847954,-194.598617,0.0005,120]
[383870304,1757149847965,-151.0,0.0005,120]
[383870306,1757149847975,-194.598617,0.0005,120]
[383870308,1757149847984,-151.0,0.0005,120]
[383870310,1757149847995,-194.598617,0.0005,120]
[383870312,1757149848005,-151.0,0.0005,120]
[383870314,1757149848015,-151.0,0.0005,120]
[383870317,1757149848025,-194.598617,0.0005,120]
[383870319,1757149848036,-151.0,0.0005,120]
[383870321,1757149848047,-151.0,0.0005,120]
[383870323,1757149848057,-156.380816,0.0005,120]
[383870325,1757149848069,-151.471257,0.0005,120]
[383870327,1757149848080,-151.0,0.0005,120]
[383870329,1757149848090,-151.0,0.0005,120]
[383870331,1757149848100,-659.946177,0.0005,120]
[383870333,1757149848112,-659.946177,0.0005,120]
[383870335,1757149848124,-659.946177,0.0005,120]
[383870337,1757149848137,-659.946177,0.0005,120]
[383870339,1757149848148,-151.0,0.0005,120]
[383870341,1757149848160,-151.0,0.0005,120]
[383870343,1757149848172,-417.483372,0.0005,120]
[383870345,1757149848184,-262.482971,0.0005,120]
[383870347,1757149848195,-417.483372,0.0005,120]
[383870349,1757149848205,-262.482971,0.0005,120]
[383870351,1757149848217,-417.483372,0.0005,120]
[383870353,1757149848227,-556.57398273,0.0005,120]
[383870355,1757149848238,-262.482971,0.0005,120]
[383870357,1757149848250,-151.0,0.0005,120]
[383870359,1757149848260,-417.483372,0.0005,120]
[383870362,1757149848273,-262.482971,0.0005,120]
[383870364,1757149848285,-151.0,0.0005,120]
[383870366,1757149848297,-151.0,0.0005,120]
[383870368,1757149848310,-151.0,0.0005,120]
[383870370,1757149848321,-248.534305,0.0005,120]
[383870372,1757149848332,-151.0,0.0005,120]
[383870374,1757149848343,-151.0,0.0005,120]
[383870376,1757149848355,-247.0815,0.0005,120]
[383870378,1757149848366,-247.0815,0.0005,120]
[383870380,1757149848377,-247.0815,0.0005,120]
[383870382,1757149848388,-338.883,0.0005,120]
[383870384,1757149848398,-247.0815,0.0005,120]
[383870386,1757149848412,-151.0,0.0005,120]
[383870388,1757149848423,-151.0,0.0005,120]
[383870390,1757149848433,-338.883,0.0005,120]
[383870392,1757149848445,-151.0,0.0005,120]
[383870394,1757149848457,-151.0,0.0005,120]
[383870396,1757149848468,-747.978665,0.0005,120]
[383870398,1757149848479,-338.883,0.0005,120]
[383870400,1757149848497,-173.482653,0.0005,120]
[383870402,1757149848521,-196.628952,0.0005,120]
[383870404,1757149848533,-151.0,0.0005,120]
[383870406,1757149848544,-747.978665,0.0005,120]
[383870408,1757149848554,-173.482653,0.0005,120]
[383870410,1757149848565,-196.628952,0.0005,120]
[383870413,1757149848576,-338.883,0.0005,120]
[383870414,1757149848586,-747.978665,0.0005,120]
[383870417,1757149848597,-196.628952,0.0005,120]
[383870419,1757149848607,-173.482653,0.0005,120]
[383870421,1757149848618,-151.0,0.0005,10]
[383870423,1757149848628,-747.978665,0.0005,120]
[383870425,1757149848638,-196.628952,0.0005,120]
[383870427,1757149848649,-173.482653,0.0005,120]
[383870429,1757149848661,-151.0,0.0005,10]
[383870431,1757149848671,-339.481056,0.0005,120]
[383870433,1757149848682,-210.656511,0.0005,120]
[383870435,1757149848692,-210.656511,0.0005,120]
[383870437,1757149848702,-339.481056,0.0005,120]
[383870463,1757149848960,-210.656511,0.0005,120]
[383870465,1757149848971,-339.481056,0.0005,120]
[383870467,1757149848981,-151.0,0.0005,120]
[383870469,1757149848991,-151.0,0.0005,120]
[383870471,1757149849001,-339.481056,0.0005,120]
[383870473,1757149849014,-210.656511,0.0005,120]
[383870475,1757149849025,-151.365262,0.0005,120]
[383870477,1757149849036,-151.0,0.0005,120]
[383870479,1757149849046,-644.322575,0.0005,120]
[383870481,1757149849056,-151.0,0.0005,120]
[383870483,1757149849067,-644.322575,0.0005,120]
[383870485,1757149849076,-151.0,0.0005,120]
[383870487,1757149849086,-151.0,0.0005,120]
[383870490,1757149849097,-644.322575,0.0005,120]
[383870491,1757149849107,-151.0,0.0005,120]
[383870493,1757149849117,-644.322575,0.0005,120]
[383870495,1757149849131,-346.418084,0.0005,120]
[383870497,1757149849141,-151.0,0.0005,120]
[383870499,1757149849151,-346.418084,0.0005,120]
[383870501,1757149849162,-201.482259,0.0005,120]
[383870503,1757149849172,-331.983944,0.0005,120]
[383870505,1757149849182,-151.0,0.0005,120]
[383870507,1757149849192,-346.418084,0.0005,120]
[383870509,1757149849203,-172.287321,0.0005,120]
[383870511,1757149849213,-201.482259,0.0005,120]
[383870514,1757149849223,-331.983944,0.0005,120]
[383870515,1757149849234,-346.418084,0.0005,120]
[383870517,1757149849244,-172.287321,0.0005,120]
[383870519,1757149849254,-201.482259,0.0005,120]
[383870521,1757149849264,-331.983944,0.0005,120]
[383870523,1757149849276,-172.287321,0.0005,120]
[383870525,1757149849285,-201.482259,0.0005,120]
[383870527,1757149849295,-331.983944,0.0005,120]
[383870529,1757149849306,-172.287321,0.0005,120]
[383870531,1757149849316,-151.0,0.0005,10]
[383870533,1757149849326,-151.0,0.0005,120]
[383870535,1757149849336,-151.0,0.0005,120]
[383870537,1757149849346,-151.0,0.0005,120]
[383870539,1757149849356,-812.172578,0.0005,120]
[383870541,1757149849366,-151.0,0.0005,120]
[383870544,1757149849378,-812.172578,0.0005,120]
[383870546,1757149849388,-151.0,0.0005,120]
[383870547,1757149849398,-812.172578,0.0005,120]
[383870549,1757149849409,-812.172578,0.0005,120]
[383870551,1757149849421,-223.99356,0.0005,120]
[383870553,1757149849431,-151.0,0.0005,120]
[383870555,1757149849442,-223.99356,0.0005,120]
[383870557,1757149849452,-151.0,0.0005,2]
[383870559,1757149849461,-151.0,0.0005,2]
[383870561,1757149849471,-223.99356,0.0005,120]
[383870563,1757149849480,-223.99356,0.0005,120]
[383870565,1757149849490,-790.624522,0.0005,120]
[383870567,1757149849500,-790.624522,0.0005,120]
[383870569,1757149849510,-151.0,0.0005,120]
[383870571,1757149849520,-581.198494,0.0005,120]
[383870573,1757149849530,-151.0,0.0005,120]
[383870575,1757149849540,-790.624522,0.0005,120]
[383870577,1757149849549,-581.198494,0.0005,120]
[383870579,1757149849559,-151.0,0.0005,120]
[383870581,1757149849568,-790.624522,0.0005,120]
[383870583,1757149849578,-581.198494,0.0005,120]
[383870585,1757149849588,-151.0,0.0005,120]
[383870587,1757149849598,-151.0,0.0005,120]